[Event "Orbis IM 2018"]
[Site "Paracin"]
[Date "2018.07.18"]
[Round "6"]
[White "Ozenir, Ekin Baris"]
[Black "Milanovic, Slavisa"]
[Result "1/2-1/2"]
[ECO "E43"]
[WhiteElo "2300"]
[BlackElo "2370"]
[Annotator "NA"]
[PlyCount "86"]
[EventDate "2018.??.??"]
[EventCountry "SRB"]
[SourceTitle "playchess.com"]
[Source "ChessBase"]
[SourceQuality "1"]
[TimeControl "40/5400+30:1800+30"]

1. d4 {[%emt 0:00:00]} e6 {[%emt 0:00:00]} 2. c4 {[%emt 0:00:02]} Nf6 {[%emt 0:00:00]} 3. Nc3 {[%emt 0:00:31]} Bb4 {[%emt 0:00:00]} 4. e3 {[%emt 0:00:42]} b6 {[%emt 0:00:00]} 5. Be2 {[%emt 0:01:39]} Bb7 {[%emt 0:00:43] E43: Nimzo-Indian: Rubinstein: 4...b6} 6. Bf3 {[%emt 0:01:36]} Qc8 {[%emt 0:04:15]} (6... Ne4 7. Nge2 O-O 8. a3 Bxc3+ 9. Nxc3 f5 10. Bxe4 fxe4 11. Qg4 Qf6 12. O-O Qf5 13. Qxf5 Rxf5 {0-1 (66) Paehtz,E (2486)-Kosteniuk,A (2552) Erfurt 2017}) 7. Bd2 {[%emt 0:17:08]} O-O {[%emt 0:05:59]} 8. d5 $146 {[%emt 0:12:15]} ({Predecessor:} 8. Nce2 Be7 9. h3 d5 10. cxd5 Nxd5 11. a3 c5 12. Nc3 Rd8 13. Nxd5 Bxd5 {½-½ (31) Ovcharenko,L (2294)-Ilyasov,A (2336) ICCF email 2014}) 8... exd5 {[%emt 0:05:55]} 9. Nxd5 {[%emt 0:05:05]} Nxd5 {[%emt 0:01:27]} 10. cxd5 {[%emt 0:01:23]} Bxd2+ {[%emt 0:00:50]} 11. Qxd2 {[%emt 0:00:09]} c5 {[%emt 0:00:10]} 12. Ne2 {[%emt 0:05:28]} d6 {[%emt 0:01:15]} 13. O-O {[%emt 0:01:42]} Nd7 {[%emt 0:00:49]} 14. Ng3 {[%emt 0:02:59]} Qd8 {[%emt 0:09:54]} 15. Be2 {[%emt 0:06:14]} Re8 {[%emt 0:14:40]} 16. e4 {[%emt 0:05:19]} a6 {[%emt 0:19:43]} 17. a4 {[%emt 0:01:16]} Rc8 {[%emt 0:01:33]} 18. b3 {[%emt 0:04:28]} g6 {[%emt 0:20:18]} 19. Bc4 {[%emt 0:11:46]} Qh4 {[%emt 0:02:23]} 20. f3 {[%emt 0:05:22]} Ne5 {[%emt 0:04:13]} 21. Rad1 {[%emt 0:02:40]} Re7 {[%emt 0:01:09]} 22. Qf2 {[%emt 0:03:07]} Rb8 {[%emt 0:01:06]} 23. Kh1 {[%emt 0:01:38]} Kf8 {[%emt 0:01:43]} 24. Qe2 {[%emt 0:01:18]} b5 {[%emt 0:00:17]} 25. axb5 {[%emt 0:00:26]} axb5 {[%emt 0:00:05]} 26. Bxb5 {[%emt 0:00:58]} Bc8 {[%emt 0:00:26]} 27. Bc4 {[%emt 0:01:23]} f5 {[%emt 0:00:05]} 28. Qf2 {[%emt 0:01:19]} Ra7 {[%emt 0:01:57]} 29. exf5 {[%emt 0:01:30]} gxf5 {[%emt 0:00:06]} 30. Qc2 {[%emt 0:01:23]} Qf4 {[%emt 0:02:02]} 31. Ne2 {[%emt 0:01:06]} Qh6 {[%emt 0:01:17]} 32. Qd2 {[%emt 0:00:50]} Qxd2 {[%emt 0:00:16]} 33. Rxd2 {[%emt 0:00:05]} Rb4 {[%emt 0:00:33]} 34. Rc2 {[%emt 0:00:43]} Ra3 {[%emt 0:00:51]} 35. h3 {[%emt 0:00:38]} Ba6 {[%emt 0:00:49]} 36. Bxa6 {[%emt 0:01:47]} Rxa6 {[%emt 0:00:01]} 37. f4 {[%emt 0:00:29]} Ng6 {[%emt 0:00:20]} 38. Rf3 {[%emt 0:01:05]} Ra3 {[%emt 0:00:25]} 39. Rcc3 {[%emt 0:00:19]} Re4 {[%emt 0:00:54]} 40. Rfe3 {[%emt 0:00:00]} Rxe3 {[%emt 0:00:00]} 41. Rxe3 {[%emt 0:01:02]} c4 {[%emt 0:08:38]} 42. Nd4 {[%emt 0:02:50]} Ne7 {[%emt 0:02:56]} 43. Rf3 $11 {[%emt 0:02:19]} cxb3 {[%emt 0:00:58]} 1/2-1/2

[Event "Orbis IM 2018"]
[Site "Paracin"]
[Date "2018.07.18"]
[Round "6"]
[White "Sredojevic, Ivan"]
[Black "Isha, Sharma"]
[Result "1-0"]
[ECO "A41"]
[WhiteElo "2298"]
[BlackElo "2062"]
[Annotator "NA"]
[PlyCount "83"]
[EventDate "2018.??.??"]
[EventCountry "SRB"]
[SourceTitle "playchess.com"]
[Source "ChessBase"]
[SourceQuality "1"]
[TimeControl "40/5400+30:1800+30"]

1. d4 d6 2. Nf3 Nf6 3. g3 {g} g6 {Bg} 4. Bg2 Bg7 5. O-O O-O 6. a4 c5 {A49: Königsindisch (ohne c2-c4)} (6... c6 7. Nc3 Nbd7 8. e4 e5 9. Re1 Re8 10. h3 Qc7 11. a5 Rb8 12. b3 b5 13. axb6 axb6 14. Ba3 Bf8 15. d5 Bb7 16. dxc6 Bxc6 17. Nd2 b5 18. Bb4 Ra8 19. Qe2 Qb6 {1-0 (69) Zhao,J (2604)-Adhiban,B (2655) Riadh 2017}) 7. c3 {a} a6 $146 ({Vorgänger:} 7... Nc6 8. Na3 cxd4 9. cxd4 Bf5 10. Nh4 Ne4 11. Nxf5 gxf5 12. e3 d5 13. f3 Nd6 14. Qb3 {1-0 (25) Granero Roca,A (2447)-Pena Riasco,A (2218) La Roda 2010}) 8. Na3 ({Besser ist} 8. dxc5 $16 dxc5 9. Qxd8 Rxd8 10. Be3) 8... cxd4 9. cxd4 d5 10. Ne5 Qb6 11. Nc2 Nc6 12. Nxc6 Qxc6 13. Bg5 Be6 14. e3 Qb6 15. Qd2 h6 16. Bxf6 Bxf6 17. Nb4 Qa5 18. Rfd1 Rfd8 19. Nd3 Qxd2 20. Rxd2 Bf5 21. Rc1 e6 22. Rc7 Rab8 23. Nc5 Rdc8 24. Rxc8+ {Rxc} Rxc8 25. a5 Bd8 26. b4 Rc7 27. f3 g5 $1 28. e4 Bg6 29. exd5 exd5 30. f4 gxf4 31. gxf4 Be7 ({Black should try} 31... Bh4 $14) 32. Bxd5 Bd6 33. Re2 Kf8 (33... Bf5 $16 34. Kf2 Kf8) 34. Kg2 Bxc5 35. dxc5 Rd7 36. Bf3 Bd3 37. Re5 $18 Bb5 38. Rd5 Rxd5 39. Bxd5 Bc6 40. Bxc6 bxc6 41. Kg3 Kg7 42. b5 1-0

[Event "Orbis IM 2018"]
[Site "Paracin"]
[Date "2018.07.18"]
[Round "6"]
[White "Bergsson, Stefan"]
[Black "Scott, Luke"]
[Result "1-0"]
[ECO "A25"]
[WhiteElo "2192"]
[BlackElo "1887"]
[Annotator "NA"]
[PlyCount "72"]
[EventDate "2018.??.??"]
[EventCountry "SRB"]
[SourceTitle "playchess.com"]
[Source "ChessBase"]
[SourceQuality "1"]
[TimeControl "40/5400+30:1800+30"]

1. c4 {[%emt 0:00:00]} e5 {[%emt 0:00:52]} 2. Nc3 {[%emt 0:00:00]} Nc6 {[%emt 0:00:05]} 3. g3 {[%emt 0:00:23]} f5 {[%emt 0:00:09]} 4. Bg2 {[%emt 0:00:06]} Nf6 {[%emt 0:00:04]} 5. d3 {[%emt 0:05:31]} Bb4 {[%emt 0:05:27]} 6. Bd2 {[%emt 0:03:50]} d6 {[%emt 0:07:37]} 7. a3 {[%emt 0:03:12] LiveBook: 7 Partien A25: Englische Eröffnung (Sizilianisch im Anzug)} (7. Nf3 O-O 8. O-O a5 9. Ne1 Be6 10. a3 Bc5 11. Nd5 Qd7 12. Nxf6+ Rxf6 13. b4 Bd4 14. Rb1 axb4 15. axb4 f4 16. Nf3 fxg3 17. hxg3 {0-1 (41) Kollars,D (2443)-Bachmann,A (2603) Rhodes 2015}) 7... Ba5 {[%emt 0:00:05]} 8. e3 {[%emt 0:03:08]} a6 $146 {[%emt 0:03:51]} ({Vorgänger:} 8... O-O 9. Nge2 Ne7 10. Nd5 Bxd2+ 11. Qxd2 c6 12. Nxf6+ Rxf6 13. f4 Be6 14. O-O Qc7 {1-0 (30) Richtrova,E (2188)-Korinkova,E (1792) Marianske Lazne 2016}) 9. Nge2 {[%emt 0:03:53]} O-O {[%emt 0:03:12]} 10. O-O {[%emt 0:01:06]} Bb6 {[%emt 0:02:46]} 11. b4 {[%emt 0:00:20]} Qe8 {[%emt 0:09:31]} 12. Nd5 {[%emt 0:08:13]} Nxd5 {[%emt 0:05:37]} 13. Bxd5+ {[%emt 0:00:44]} Kh8 {[%emt 0:02:33]} 14. Bg2 {[%emt 0:01:10]} g5 {[%emt 0:03:28]} 15. Bc3 {[%emt 0:04:47]} f4 {[%emt 0:14:13]} 16. exf4 {[%emt 0:02:05]} gxf4 {[%emt 0:00:08]} 17. Nxf4 {[%emt 0:01:00]} Bd4 {[%emt 0:22:46]} 18. Bxd4 {[%emt 0:02:01]} Nxd4 {[%emt 0:00:08]} 19. Nd5 {[%emt 0:00:13]} Qf7 {[%emt 0:04:01]} 20. f4 {[%emt 0:00:21]} Qg7 {[%emt 0:00:26]} 21. fxe5 {[%emt 0:00:46]} Bg4 {[%emt 0:00:37]} 22. Qb1 {[%emt 0:03:18]} Qh6 {[%emt 0:12:03]} (22... Rxf1+ $11 23. Qxf1 Rf8) 23. Ra2 {[%emt 0:02:48]} Ne2+ {[%emt 0:00:28]} 24. Rxe2 {[%emt 0:00:31]} Bxe2 {[%emt 0:00:04]} 25. Rxf8+ {[%emt 0:00:30]} Rxf8 {[%emt 0:00:11]} 26. Qb2 {[%emt 0:04:05]} Bxd3 {[%emt 0:01:21]} 27. exd6+ {[%emt 0:01:33]} Qg7 {[%emt 0:00:46]} 28. Qxg7+ {[%emt 0:00:33]} Kxg7 {[%emt 0:00:01]} 29. dxc7 {[%emt 0:00:22]} Bf5 {[%emt 0:00:30]} 30. Ne7 {[%emt 0:02:47]} Bc8 {[%emt 0:00:36]} 31. c5 {[%emt 0:04:26]} Kf6 $18 {[%emt 0:01:16]} 32. Nxc8 {[%emt 0:02:53]} Rxc8 {[%emt 0:00:02]} 33. Bxb7 {[%emt 0:00:10]} Rxc7 {[%emt 0:00:02]} 34. Bxa6 {[%emt 0:00:21]} Ra7 {[%emt 0:00:05]} 35. b5 {[%emt 0:00:15]} Ke6 {[%emt 0:00:26]} 36. b6 {[%emt 0:00:32]} Kd5 1-0

[Event "Orbis IM 2018"]
[Site "Paracin"]
[Date "2018.07.18"]
[Round "7"]
[White "Milanovic, Slavisa"]
[Black "Sredojevic, Ivan"]
[Result "1/2-1/2"]
[ECO "A34"]
[WhiteElo "2370"]
[BlackElo "2298"]
[Annotator "NA"]
[PlyCount "25"]
[EventDate "2018.??.??"]
[EventCountry "SRB"]
[SourceTitle "playchess.com"]
[Source "ChessBase"]
[SourceQuality "1"]
[TimeControl "40/5400+30:1800+30"]

1. c4 Nf6 2. Nc3 c5 3. g3 d5 4. cxd5 Nxd5 5. Bg2 Nc7 6. Nf3 Nc6 7. O-O e5 8. d3 Be7 9. Nd2 Bd7 10. Nc4 f6 11. f4 exf4 12. Bxf4 O-O 13. Bxc6 1/2-1/2

[Event "Orbis IM 2018"]
[Site "Paracin"]
[Date "2018.07.18"]
[Round "7"]
[White "Konaplev, Anton"]
[Black "Markovic, Milan D"]
[Result "1-0"]
[ECO "A59"]
[WhiteElo "2316"]
[BlackElo "2312"]
[Annotator "NA"]
[PlyCount "49"]
[EventDate "2018.??.??"]
[EventCountry "SRB"]
[SourceTitle "playchess.com"]
[Source "ChessBase"]
[SourceQuality "1"]
[TimeControl "40/5400+30:1800+30"]

1. d4 Nf6 2. c4 c5 3. d5 b5 4. cxb5 a6 5. bxa6 g6 6. Nc3 Bxa6 7. e4 Bxf1 8. Kxf1 d6 9. Nf3 Bg7 10. g3 O-O 11. Kg2 Nbd7 12. a4 Qb6 13. Qc2 Rfb8 14. Ra3 e6 15. dxe6 fxe6 16. Nb5 Qc6 17. Nfd4 Qxe4+ 18. Qxe4 Nxe4 19. Nxe6 Ne5 20. Nec7 Nc4 21. Ra2 Rf8 22. f3 Ned2 23. Bxd2 Nxd2 24. Nxa8 Re8 25. b3 1-0

[Event "Orbis IM 2018"]
[Site "Paracin"]
[Date "2018.07.18"]
[Round "7"]
[White "Isha, Sharma"]
[Black "Avalyan, Artur"]
[Result "1/2-1/2"]
[ECO "C00"]
[WhiteElo "2062"]
[BlackElo "2315"]
[Annotator "NA"]
[PlyCount "49"]
[EventDate "2018.??.??"]
[EventCountry "SRB"]
[SourceTitle "playchess.com"]
[Source "ChessBase"]
[SourceQuality "1"]
[TimeControl "40/5400+30:1800+30"]

1. e4 {[%emt 0:00:00]} e6 {[%emt 0:00:00]} 2. d3 {[%emt 0:00:00]} d5 {[%emt 0:00:04]} 3. Nd2 {[%emt 0:00:00]} Nf6 {[%emt 0:00:08]} 4. Ngf3 {[%emt 0:00:00]} c5 {[%emt 0:00:19]} 5. g3 {[%emt 0:00:10]} g6 {[%emt 0:00:13]} 6. Bg2 {[%emt 0:00:06]} Bg7 {[%emt 0:00:05]} 7. O-O {[%emt 0:00:05]} Nc6 {[%emt 0:00:06]} 8. Re1 {[%emt 0:00:18]} O-O {[%emt 0:00:08]} 9. c3 {[%emt 0:00:08]} a5 {[%emt 0:00:22]} 10. Qe2 {[%emt 0:01:11] A08: Königsindisch im Anzug} (10. a4 b6 11. Nb1 Ba6 12. e5 Nd7 13. Bf4 f6 14. exf6 Qxf6 15. Qd2 e5 16. Bg5 Qxf3 17. Bxf3 Rxf3 {1-0 (34) Amin,B (2661)-Grandelius,N (2641) Baku 2016}) 10... b6 {[%emt 0:00:37]} 11. Nf1 {[%emt 0:18:23]} dxe4 {[%emt 0:04:21]} 12. dxe4 {[%emt 0:00:07]} Ba6 {[%emt 0:00:15]} 13. Qe3 {[%emt 0:01:09]} Ng4 {[%emt 0:01:51]} 14. Qg5 {[%emt 0:01:36]} Nge5 {[%emt 0:00:29]} 15. Qxd8 {[%emt 0:07:48]} Raxd8 {[%emt 0:00:17]} 16. Bg5 $146 {[%emt 0:02:16]} ({Vorgänger:} 16. Nxe5 Nxe5 17. Bg5 f6 {0-1 (36) Parle,H (2069)-Smirnov,A (2529) Gold Coast 2018}) 16... Rd7 {[%emt 0:06:08]} 17. Red1 {[%emt 0:00:56]} Bd3 {[%emt 0:09:21]} 18. Ne1 {[%emt 0:07:08]} Be2 {[%emt 0:10:37]} 19. Rxd7 {[%emt 0:07:06]} Nxd7 {[%emt 0:00:07]} 20. Nd2 {[%emt 0:01:15]} h6 $11 {[%emt 0:11:08]} 21. Be3 {[%emt 0:04:33]} Nde5 {[%emt 0:01:35]} 22. h3 {[%emt 0:00:34]} Rd8 {[%emt 0:05:05]} 23. Bf1 {[%emt 0:04:09]} Bxf1 {[%emt 0:00:59]} 24. Kxf1 {[%emt 0:00:08]} Nd7 {[%emt 0:07:03]} 25. a4 {[%emt 0:06:54]} 1/2-1/2

[Event "Orbis IM 2018"]
[Site "Paracin"]
[Date "2018.07.18"]
[Round "7"]
[White "Scott, Luke"]
[Black "Ozenir, Ekin Baris"]
[Result "0-1"]
[ECO "E46"]
[WhiteElo "1887"]
[BlackElo "2300"]
[Annotator "NA"]
[PlyCount "124"]
[EventDate "2018.??.??"]
[EventCountry "SRB"]
[SourceTitle "playchess.com"]
[Source "ChessBase"]
[SourceQuality "1"]
[TimeControl "40/5400+30:1800+30"]

1. d4 {[%emt 0:00:00]} Nf6 {[%emt 0:00:00]} 2. c4 {[%emt 0:00:00]} e6 {[%emt 0:00:14]} 3. Nc3 {[%emt 0:00:00]} Bb4 {[%emt 0:00:46]} 4. e3 {[%emt 0:00:00]} O-O {[%emt 0:00:58]} 5. Nge2 {[%emt 0:00:00]} d5 {[%emt 0:02:21]} 6. a3 {[%emt 0:00:04]} Bd6 {[%emt 0:01:32]} 7. cxd5 {[%emt 0:03:42]} exd5 {[%emt 0:01:57]} 8. Ng3 {[%emt 0:00:44]} Re8 {[%emt 0:08:24]} 9. Bd3 {[%emt 0:03:58]} c6 {[%emt 0:04:16]} 10. O-O {[%emt 0:03:41]} Nbd7 {[%emt 0:05:00]} 11. b4 {[%emt 0:15:30]} a6 {[%emt 0:06:00]} 12. Qc2 {[%emt 0:09:38]} Nf8 {[%emt 0:07:50]} 13. Re1 {[%emt 0:09:40]} Ne6 {[%emt 0:09:05]} 14. Bb2 {[%emt 0:04:40]} g6 $11 {[%emt 0:10:09]} 15. Nf1 {[%emt 0:11:55]} Qc7 {[%emt 0:10:42]} 16. f3 {[%emt 0:10:05]} Bf8 {[%emt 0:09:07]} 17. Rad1 {[%emt 0:04:46]} Bg7 {[%emt 0:01:45]} 18. Qb3 {[%emt 0:01:27]} b6 {[%emt 0:09:23]} 19. Ng3 {[%emt 0:06:59]} Bb7 {[%emt 0:01:19]} 20. Na4 {[%emt 0:00:36]} Nd7 {[%emt 0:00:37]} 21. Bb1 {[%emt 0:00:39]} Rad8 {[%emt 0:03:28]} 22. e4 {[%emt 0:04:14]} dxe4 {[%emt 0:00:36]} 23. fxe4 {[%emt 0:00:03]} b5 {[%emt 0:00:14]} 24. Nc5 {[%emt 0:01:00]} Ndxc5 {[%emt 0:00:09]} 25. dxc5 {[%emt 0:00:17]} Nd4 {[%emt 0:01:20]} 26. Qe3 {[%emt 0:03:00]} Nc2 {[%emt 0:01:56]} 27. Bxc2 {[%emt 0:00:33]} Bxb2 {[%emt 0:00:05]} 28. Bb3 {[%emt 0:03:07]} Kg7 {[%emt 0:01:28]} 29. Kh1 {[%emt 0:00:55]} f6 {[%emt 0:00:44]} 30. Ba2 {[%emt 0:01:27]} Be5 {[%emt 0:01:23]} 31. Nf1 {[%emt 0:00:16]} Bc8 {[%emt 0:00:40]} 32. g3 {[%emt 0:00:20]} Bg4 {[%emt 0:01:02]} 33. Rxd8 {[%emt 0:00:58]} Rxd8 {[%emt 0:00:09]} 34. Kg2 {[%emt 0:00:12]} Qd7 {[%emt 0:00:18]} 35. Bb3 {[%emt 0:01:18]} Qc8 {[%emt 0:01:22]} 36. Qc1 {[%emt 0:01:20]} Rd3 {[%emt 0:00:30]} 37. Bd1 {[%emt 0:00:11]} Bxd1 {[%emt 0:00:44]} 38. Rxd1 {[%emt 0:00:01]} Qd7 {[%emt 0:00:09]} 39. Rxd3 {[%emt 0:00:09]} Qxd3 {[%emt 0:00:06]} 40. Qe3 {[%emt 0:00:00]} Qc2+ {[%emt 0:00:00]} 41. Kf3 {[%emt 0:03:52]} Qb1 {[%emt 0:11:28]} 42. Ke2 {[%emt 0:18:58]} Bb2 {[%emt 0:08:09]} 43. Qf4 {[%emt 0:02:49]} Qc2+ {[%emt 0:02:58]} 44. Nd2 {[%emt 0:00:04]} Bc3 {[%emt 0:00:51]} 45. Qc7+ {[%emt 0:03:44]} Kh6 {[%emt 0:02:24]} 46. Qd6 {[%emt 0:00:26]} Kh5 {[%emt 0:03:58]} 47. h3 {[%emt 0:05:23]} Bxd2 {[%emt 0:01:56]} 48. Qxd2 {[%emt 0:00:33]} Qxe4+ {[%emt 0:00:13]} 49. Qe3 {[%emt 0:00:00]} Qxe3+ {[%emt 0:00:43]} 50. Kxe3 {[%emt 0:00:03]} Kg5 {[%emt 0:00:17]} 51. Ke4 {[%emt 0:00:25]} h5 {[%emt 0:00:59]} 52. Ke3 {[%emt 0:00:11]} Kf5 {[%emt 0:00:14]} 53. Kf3 {[%emt 0:00:06]} Ke5 {[%emt 0:00:14]} 54. Ke3 {[%emt 0:00:03]} g5 {[%emt 0:00:14]} 55. Kd3 {[%emt 0:00:25]} f5 {[%emt 0:00:12]} 56. Ke3 {[%emt 0:00:05]} f4+ {[%emt 0:00:07]} 57. gxf4+ {[%emt 0:00:07]} gxf4+ {[%emt 0:00:04]} 58. Kf3 {[%emt 0:00:07]} Kf5 {[%emt 0:00:05]} 59. h4 {[%emt 0:00:33]} Ke5 {[%emt 0:00:03]} 60. Ke2 {[%emt 0:00:10]} Ke4 {[%emt 0:00:05]} 61. Kf2 {[%emt 0:00:10]} f3 {[%emt 0:00:09]} 62. Ke1 {[%emt 0:00:13]} Ke3 {[%emt 0:00:17]} 0-1

[Event "Orbis IM 2018"]
[Site "Paracin"]
[Date "2018.07.20"]
[Round "9"]
[White "Milanovic, Slavisa"]
[Black "Avalyan, Artur"]
[Result "1-0"]
[ECO "D37"]
[WhiteElo "2370"]
[BlackElo "2315"]
[Annotator "ChessBase"]
[PlyCount "61"]
[EventDate "2018.??.??"]
[EventCountry "SRB"]
[SourceTitle "playchess.com"]
[Source "ChessBase"]
[SourceQuality "1"]
[TimeControl "40/5400+30:1800+30"]

1. c4 {[%emt 0:00:00]} e6 {[%emt 0:00:00]} 2. Nc3 {[%emt 0:00:00]} d5 {[%emt 0:00:00]} 3. d4 {[%emt 0:00:00]} Nf6 {[%emt 0:00:00]} 4. Nf3 {[%emt 0:00:03]} Be7 {[%emt 0:00:00]} 5. Bf4 {[%emt 0:00:07]} O-O {[%emt 0:00:08]} 6. e3 {[%emt 0:00:04]} b6 {[%emt 0:00:10]} 7. cxd5 {[%emt 0:03:44]} Nxd5 {[%emt 0:00:43]} 8. Nxd5 {[%emt 0:01:14]} exd5 {[%emt 0:00:13]} 9. Be2 {[%emt 0:08:40]} c5 {[%emt 0:00:33]} 10. O-O {[%emt 0:01:03]} Be6 {[%emt 0:02:27]} 11. b3 {[%emt 0:03:16]} a6 {[%emt 0:15:22]} 12. Rc1 {[%emt 0:08:13]} Nd7 {[%emt 0:06:11]} 13. h3 {[%emt 0:05:46]} g5 {[%emt 0:09:58]} 14. Bh2 {[%emt 0:01:32]} f5 {[%emt 0:00:56]} 15. Ne5 {[%emt 0:02:28]} Nxe5 {[%emt 0:02:17]} 16. Bxe5 {[%emt 0:01:11]} Qd7 {[%emt 0:04:01]} 17. Qd2 {[%emt 0:02:31]} Bd6 {[%emt 0:17:27]} 18. Bxd6 {[%emt 0:05:43]} Qxd6 {[%emt 0:00:07]} 19. Rfd1 {[%emt 0:00:15]} Ra7 {[%emt 0:06:25]} 20. Qc3 {[%emt 0:06:17]} cxd4 {[%emt 0:11:05]} 21. Qxd4 {[%emt 0:00:57]} Rg7 {[%emt 0:05:07]} 22. Bxa6 {[%emt 0:22:20]} g4 {[%emt 0:02:58]} 23. hxg4 {[%emt 0:00:09]} Rxg4 {[%emt 0:03:49]} 24. f4 {[%emt 0:00:53]} Bf7 {[%emt 0:03:46]} 25. Be2 {[%emt 0:03:22]} Rg7 {[%emt 0:00:26]} 26. Bf3 {[%emt 0:01:42]} Rd8 {[%emt 0:00:11]} 27. Rc2 {[%emt 0:02:20]} Qg6 {[%emt 0:01:30]} 28. Rdc1 {[%emt 0:01:10]} Be6 {[%emt 0:00:44]} 29. Rc6 {[%emt 0:03:06]} Qg3 {[%emt 0:00:30]} 30. Rxe6 {[%emt 0:00:43]} Qxf3 {[%emt 0:00:08]} 31. Qxg7+ {[%emt 0:00:09]} 1-0

[Event "Orbis IM 2018"]
[Site "Paracin"]
[Date "2018.07.20"]
[Round "9"]
[White "Scott, Luke"]
[Black "Isha, Sharma"]
[Result "1/2-1/2"]
[ECO "A41"]
[WhiteElo "1887"]
[BlackElo "2062"]
[Annotator "NA RC"]
[PlyCount "101"]
[EventDate "2018.??.??"]
[EventCountry "SRB"]
[SourceTitle "playchess.com"]
[Source "ChessBase"]
[SourceQuality "1"]
[TimeControl "40/5400+30:1800+30"]

1. d4 d6 2. Nf3 Nf6 3. c4 g6 4. Nc3 Bf5 5. g3 Bg7 6. Bg2 Ne4 7. O-O Nxc3 8. bxc3 Be4 9. Qb3 {LiveBook: 4 Games} O-O 10. Ng5 $146 {E60: Königsindisch (ohne Sc3)} (10. Bh3 $11) ({Vorgänger:} 10. Nh4 Bxg2 11. Nxg2 b6 12. e4 Nc6 13. Ne3 Na5 14. Qc2 c5 15. Qd3 cxd4 16. cxd4 Rc8 17. Bd2 Nc6 {1-0 (43) Postny,E (2606)-Bortnyk,O (2570) Kishinev 2017}) 10... Bxg2 11. Kxg2 b6 12. e4 Nc6 13. f4 Na5 14. Qd1 Nxc4 15. f5 c5 16. fxg6 hxg6 17. Nxf7 Rxf7 18. Rxf7 Kxf7 19. Qf1+ Bf6 20. Qxc4+ Kg7 21. Be3 Qd7 22. Rf1 Rh8 23. h4 cxd4 24. cxd4 Rc8 25. Qd3 Qa4 26. Rf2 Rc4 27. e5 dxe5 28. dxe5 Qc6+ 29. Kh2 Bxe5 30. Bh6+ $1 Kxh6 31. Qe3+ Bf4 32. Rxf4 Rc3 (32... Qc5 $15 33. Qxc5 Rxc5) 33. Qxe7 Rc2+ 34. Kh3 Qc8+ 35. Rg4 Rc5 36. Qf7 Qf5 37. Qxf5 gxf5 38. Ra4 a5 39. Kg2 Rc3 40. Kf2 Kg7 41. Kg2 Kf6 42. Kf2 Ke5 43. Kg2 Rc7 44. Kf3 Ra7 45. h5 Kf6 46. Rh4 Kg5 47. h6 $11 Rh7 48. a4 Rxh6 49. Rxh6 Kxh6 50. Kf4 Kg6 51. g4 1/2-1/2